Cogmind - Beta 16 @@@ ROGUE MODE // 2025.11.24 @ 01:21:56 Player: Darby Result: Destroyed by Lightning with EMDS Performance ------------- Evolutions (4) 2000 Regions Visited (17) 3400 Robots Destroyed (392) 1960 Value Destroyed (12203) 12203 Prototype IDs (57) 1140 Alien Tech Used (0) 0 Bonus (3541) 3541 TOTAL SCORE: 24244 Bonus ------- High Alert Combat Kills 1073 Follower Combat Kills 1020 Network Hubs Disabled 200 Registered with UFD 300 Met Optimus in HQ 500 Met R17 at Cetus 500 Friendly Fire -52 Cogmind --------- Core Integrity 0/850 Matter 78/300 Energy 75/100 System Corruption 2% Temperature Cool (0) Movement Core (50) Location -6/Hub_04(d) Parts ------- > --- POWER (1) -------- (None) > --- PROPULSION (6) --- (None) > --- UTILITY (6) ------ Advanced Signal Interpreter Improved Hacking Suite Improved System Shield > --- WEAPON (2) ------- (None) > --- INVENTORY (5) ---- Gravmag System High-capacity Storage Unit Centrium Medium Armor Plating Bore Cannon Advanced Datajack Peak State ------------ > --- POWER ------------ Light Angular Momentum Engine > --- PROPULSION ------- Light Treads Improved Medium Treads Centrium Heavy Treads Centrium Heavy Treads > --- UTILITY ---------- Huge Storage Unit Advanced Signal Interpreter Improved Utility Shielding Centrium Medium Armor Plating Centrium Medium Armor Plating Centrium Medium Armor Plating > --- WEAPON ----------- Advanced KE Penetrator Advanced Datajack > --- INVENTORY -------- Light Fission Core Neutrino Core Carbon-fiber Leg Flexi-carbon Leg Wheel Wheel Gravmag System Gravmag System Gravmag System Gravmag System High-capacity Storage Unit Structural Scanner Experimental Sensor Array Improved Light Armor Plating Improved Hacking Suite Improved System Shield Improved System Shield Gatling Laser Beamcaster Flak Gun Bore Cannon Enhanced Flamer Great Maul [Rating: 107] Favorites ----------- Power Light Nuclear Core Engine Deuterium Engine Power Core Light Nuclear Core Reactor Antimatter Reactor Propulsion Wheel Treads Armored Treads Leg Aluminum Leg Wheel Wheel Hover Unit Gravmag Array Flight Unit Improved VTOL Module Utility Structural Scanner Device Structural Scanner Storage Huge Storage Unit Processor Advanced Signal Interpreter Hackware System Shield Protection Hardened Medium Armor Plating Weapon Improved Datajack Energy Gun Improved EM Shotgun Energy Cannon Nova Cannon Ballistic Gun Autogun Ballistic Cannon Heavy Assault Cannon Launcher Proton Missile Launcher Special Weapon Mining Laser Impact Weapon Great Maul Slashing Weapon Power Sword Piercing Weapon Spear Special Melee Weapon Improved Datajack Build | -11 -10 -10 -9 -9 -9 -8 -8 -8 -8 -8 -6 -6 -6 -6 -6 -6 -6 ------- Run | Yrd Mat Min Mat Min Exi Min Mat Sto Rec Scr Fac Was Fac Ext Cet Arc Hub Slots Evolved 8 | . . . 2 . . . 2 . . . 4 . . . . . . Power . | . . . . . . . . . . . . . . . . . . Propulsion 4 | . . . . . . . 2 . . . 2 . . . . . . Utility 4 | . . . 2 . . . . . . . 2 . . . . . . Weapon . | . . . . . . . . . . . . . . . . . . Parts Attached 190 | 7 15 1 30 6 . . 18 8 1 6 50 1 13 18 7 5 4 Power 23 | 1 2 . 2 1 . . 1 1 . 1 6 1 1 5 . 1 . Engine 12 | 1 1 . 2 . . . 1 . . 1 2 . . 3 . 1 . Core 10 | . 1 . . 1 . . . 1 . . 4 . 1 2 . . . Reactor 1 | . . . . . . . . . . . . 1 . . . . . Propulsion 52 | 2 2 . 7 1 . . 6 6 . . 16 . 2 7 3 . . Treads 13 | . 1 . 2 . . . 2 4 . . . . . 1 3 . . Leg 5 | 2 . . . . . . 1 . . . . . . 2 . . . Wheel 13 | . 1 . 4 1 . . 3 . . . . . . 4 . . . Hover 13 | . . . . . . . . 1 . . 10 . 2 . . . . Flight 8 | . . . 1 . . . . 1 . . 6 . . . . . . Utility 66 | 2 6 . 11 2 . . 6 1 . 4 19 . 8 2 3 1 1 Device 29 | 2 1 . 3 . . . 3 1 . 3 12 . 3 1 . . . Storage 6 | . 3 . 1 . . . 1 . . . 1 . . . . . . Processor 5 | . . . 1 . . . . . . 1 3 . . . . . . Hackware 7 | . . . . . . . . . . . 2 . 3 . . 1 1 Protection 19 | . 2 . 6 2 . . 2 . . . 1 . 2 1 3 . . Artifact . | . . . . . . . . . . . . . . . . . . Weapon 49 | 2 5 1 10 2 . . 5 . 1 1 9 . 2 4 1 3 3 Energy Gun 9 | 1 . . 5 . . . . . . . . . . 1 . . 2 Energy Cannon 1 | . . . . . . . . . . . . . 1 . . . . Ballistic Gun 13 | 1 4 . 2 . . . 3 . . . . . . 1 1 . 1 Ballistic Cannon 6 | . . . . 1 . . 1 . . 1 1 . . 1 . 1 . Launcher 7 | . . 1 3 . . . . . . . 2 . 1 . . . . Special Weapon 3 | . 1 . . . . . . . . . 2 . . . . . . Impact Weapon 1 | . . . . . . . . . . . . . . . . 1 . Slashing Weapon 4 | . . . . . . . 1 . . . 2 . . 1 . . . Piercing Weapon 1 | . . . . . . . . . . . 1 . . . . . . Special Melee Weapon 4 | . . . . 1 . . . . 1 . 1 . . . . 1 . Unidentified Prototypes 7 | . . . 1 . . . 1 2 . . . . . . 3 . . Parts Lost 51 | . 1 . 4 . . . 3 5 . . 4 . . 21 4 . 9 Power 8 | . . . . . . . 1 1 . . 1 . . 4 . . 1 Propulsion 14 | . . . 1 . . . 2 1 . . 1 . . 3 1 . 5 Utility 17 | . 1 . 2 . . . . 2 . . 1 . . 8 1 . 2 Weapon 12 | . . . 1 . . . . 1 . . 1 . . 6 2 . 1 Highest Loss Streak 14 | . 1 . 1 . . . 1 4 . . 3 . . 14 2 . 4 To Critical Strikes 1 | . . . . . . . . 1 . . . . . . . . . Average Backups 20 | 2 11 15 21 30 30 29 27 24 24 23 14 18 17 11 12 18 24 Power . | . 1 1 1 1 1 1 . . . . . 1 1 . 2 1 1 Propulsion 3 | 1 . . 4 6 6 6 4 5 6 6 . . . . 3 5 7 Utility 9 | . 5 8 8 13 13 13 14 11 12 12 7 10 10 5 4 5 8 Weapon 5 | . 3 5 6 9 10 8 7 6 5 4 3 4 4 3 2 6 6 Tool/Special . | . . . . . . . . . . . . . . . . . . Unused Backups 42 | . 6 1 3 . . . 6 1 . 1 6 . 2 3 . . 13 Power 3 | . 1 . 1 . . . . . . . . . . . . . 1 Propulsion 10 | . 1 . . . . . 1 1 . . . . . . . . 7 Utility 19 | . 3 . . . . . 3 . . 1 5 . 1 2 . . 4 Weapon 9 | . 1 1 2 . . . 2 . . . 1 . 1 . . . 1 Tool/Special 1 | . . . . . . . . . . . . . . 1 . . . Average Slot Usage (%) 86 | . 99 100 92 87 77 87 85 79 80 82 90 80 79 75 83 84 81 Engine 4 | . 13 . 8 4 . . 4 7 . 1 1 4 . 2 6 6 6 Core 4 | . . 14 2 6 11 11 4 . 9 7 4 . 5 3 . . . Treads 8 | . 10 14 5 . . . 17 16 18 18 . . . 2 22 26 24 Wheel 9 | . 10 14 15 22 22 22 13 9 9 9 . . . 12 3 . . Hover 4 | . . . . . . . . . . . 14 20 20 6 . . . Flight 2 | . . . . . . . . . . . 16 . . . . . . Device 11 | . 14 12 12 . . . 14 18 18 18 12 13 12 6 1 3 9 Storage 8 | . 12 14 11 11 11 11 9 9 9 9 6 6 6 5 6 6 6 Processor 2 | . . . . . . . . . . 1 6 6 6 6 6 6 6 Hackware 3 | . . . . . . . . . . . 12 13 13 7 2 . 12 Protection 7 | . . 1 13 22 22 22 6 8 9 7 . . . 6 18 22 . Energy Gun 2 | . 1 . 5 13 . 21 2 . . . . . . 3 5 1 2 Ballistic Gun 5 | . 21 23 14 . . . 8 . . . . . . 1 4 5 7 Ballistic Cannon 1 | . . . . 2 . . 3 8 6 . . . . . . . 1 Special Weapon 1 | . 4 4 1 4 . . . . . . . . . . . . . Slashing Weapon 1 | . . . . . . . . . . 1 2 6 5 4 . . . Special Melee Weapon 2 | . . . . . 11 . . . 1 9 5 6 5 . . 2 . Peak Build Rating 107 | 9 13 13 22 29 22 28 42 40 39 40 67 68 76 83 100 107 99 Average Rating 41 | 4 10 12 18 24 22 26 34 37 37 36 59 65 70 55 87 99 93 On Entrance 41 | . 9 13 12 20 22 22 27 36 39 36 39 65 68 75 60 100 96 Avg Prop Armor Cover (%) 14 | . 11 11 9 . . . 16 13 15 18 3 . . 16 18 . 3 Naked Turns . | . . . . . . . . . . . . . . . . . . Heaviest Build 240 | 7 34 32 162 174 163 168 240 115 111 103 59 62 66 69 82 119 111 Greatest Support 210 | 20 20 10 20 20 20 20 28 28 28 28 66 66 66 66 210 210 210 Greatest Overweight (x) 16 | . 3 3 15 8 8 8 16 4 3 3 1 . . 2 3 . . Average Overweight (x) 1 | . 2 2 5 7 8 8 5 3 3 3 . . . . . . . Largest Inventory Capacity 30 | 5 15 15 30 30 30 30 30 25 25 25 25 20 20 20 20 25 25 Average Capacity 22 | 5 12 15 22 30 30 30 28 25 25 25 17 20 20 17 20 22 24 Most Carried 30 | 5 15 15 30 30 30 30 30 25 25 25 25 20 20 20 16 25 25 Average Carried 20 | 2 11 15 21 29 30 28 27 24 24 24 16 20 19 11 12 18 24 Final Capacity 30 | 5 15 15 30 30 30 30 25 25 25 25 20 20 20 20 20 25 5 Final Carried 30 | 5 15 15 30 30 30 29 25 25 24 25 20 20 20 20 15 23 5 Class Distribution -------------------- 23% | Hauler-Mutant 22% | Mutant 17% | Commander-Mutant 16% | Hacker-Scout 8% | Scavenger-Mutant 4% | Hacker-Mutant Dominant Class ---------------- Mutant | -10/Materials Mutant | -10/Mines Hauler-Mutant | -9/Materials Hauler-Mutant | -9/Mines Hauler-Mutant | -9/Exiles Hauler-Mutant | -8/Mines Hauler-Mutant | -8/Materials Commander-Mutant | -8/Storage Commander-Mutant | -8/Recycling Commander-Mutant | -8/Scraptown Hacker-Scout | -6/Factory Hacker-Scout | -6/Waste Hacker-Scout | -6/Factory Scavenger-Mutant | -6/Extension Scavenger-Mutant | -6/Cetus Scavenger-Mutant | -6/Archives Scavenger-Skirmisher | -6/Hub_04(d) Resources | -11 -10 -10 -9 -9 -9 -8 -8 -8 -8 -8 -6 -6 -6 -6 -6 -6 -6 ----------- Run | Yrd Mat Min Mat Min Exi Min Mat Sto Rec Scr Fac Was Fac Ext Cet Arc Hub Matter Collected 11219 | 281 1039 396 2298 312 . 101 1671 693 278 79 1682 . 879 699 291 298 222 Remotely . | . . . . . . . . . . . . . . . . . . Salvage Created 14440 | 159 1034 345 2926 81 . 146 1730 874 125 . 2583 . 1732 1319 11 605 770 Parts 802 | 17 65 23 163 6 . 15 103 49 11 . 130 . 100 45 . 38 37 Haulers Intercepted 19 | . 2 . 6 . . . 4 5 . . 1 . 1 . . . . Recyclers Shooed 18 | . 2 . 6 . . . 2 . . . 4 . 2 2 . . . Parts Field Recycled . | . . . . . . . . . . . . . . . . . . Retrieved Matter . | . . . . . . . . . . . . . . . . . . Parts Self-Destructed . | . . . . . . . . . . . . . . . . . . Prevented . | . . . . . . . . . . . . . . . . . . Parts Restored . | . . . . . . . . . . . . . . . . . . Kills | -11 -10 -10 -9 -9 -9 -8 -8 -8 -8 -8 -6 -6 -6 -6 -6 -6 -6 ------- Run | Yrd Mat Min Mat Min Exi Min Mat Sto Rec Scr Fac Was Fac Ext Cet Arc Hub Combat Hostiles Destroyed 201 | 1 10 7 50 7 . 6 27 17 3 . 22 . 16 17 4 4 10 Melee 20 | . . . . . . . . . . . 6 . 5 9 . . . Guns 89 | 1 8 4 32 3 . 5 20 . . . . . . . 3 4 9 Cannons 22 | . . . . . . . 2 15 3 . 2 . . . . . . AOE 67 | . 2 3 18 4 . 1 5 2 . . 14 . 11 6 1 . . Classes Destroyed 17 | 3 5 1 4 1 . . . . . . 1 . 1 1 . . . Worker 45 | 1 2 1 9 1 . . 4 2 . . 13 . 9 1 . . 2 Builder 34 | . 5 . 2 . . . 7 . . . 8 . 8 . . . 4 Tunneler 20 | 4 2 2 4 1 . . 1 . . . 1 . 4 . . . 1 Hauler 19 | . 2 . 6 . . . 4 5 . . 1 . 1 . . . . Recycler 28 | . 3 1 7 . . 1 2 1 . . 7 . 4 2 . . . Mechanic 2 | . . . 2 . . . . . . . . . . . . . . Operator 20 | . 3 . 3 . . . 2 . . . 2 . . 1 . 9 . Watcher 30 | . 3 . 5 . . . 4 1 . . 7 . 5 2 1 . 2 Swarmer 20 | . . 3 8 . . 6 . . . . . . . 3 . . . Grunt 107 | 1 10 4 30 . . . 18 9 . . 12 . 8 9 . . 6 Brawler 6 | . . . 2 . . . 1 1 . . 2 . . . . . . Duelist 7 | . . . 1 . . . 1 1 . . . . 3 . . . 1 Sentry 35 | . . . 9 . . . 7 6 3 . . . 1 4 . 4 1 Hunter 2 | . . . . . . . . . . . . . 1 . . . 1 Programmer 12 | . . . . . . . . . . . 8 . 3 . . . 1 Behemoth 1 | . . . . . . . . . . . . . . 1 . . . Cetus Guard 4 | . . . . . . . . . . . . . . . 4 . . Assembled 7 | . . . . 7 . . . . . . . . . . . . . Best Kill Streak 9 | 6 4 4 7 2 . 4 9 6 1 . 7 . 6 3 2 4 6 Combat Bots Only 6 | 1 2 3 4 1 . 3 5 6 1 . 6 . 3 3 2 1 4 Max Kills in Single Turn 4 | 1 3 3 3 2 . 2 3 1 1 . 3 . 4 2 1 1 2 Gunslinging 1 | . . . . . . . 1 . . . . . . . . . . Exploded 3 | . 1 3 3 1 . 1 2 1 . . 3 . 2 2 1 . . Melee 1 | . . . . . . . . . . . 1 . 1 1 . . . Uniques/NPCs Destroyed . | . . . . . . . . . . . . . . . . . . Combat | -11 -10 -10 -9 -9 -9 -8 -8 -8 -8 -8 -6 -6 -6 -6 -6 -6 -6 -------- Run | Yrd Mat Min Mat Min Exi Min Mat Sto Rec Scr Fac Was Fac Ext Cet Arc Hub Hostile Shots Fired 1036 | 3 34 21 145 7 . 18 160 99 4 . 85 . 69 191 35 23 142 Missed 335 | 2 10 9 39 2 . 5 54 26 . . 40 . 35 63 14 6 30 Hits 701 | 1 24 12 106 5 . 13 106 73 4 . 45 . 34 128 21 17 112 Melee 19 | . . . . . . . 4 8 . . . . . . . . 7 Projectile 682 | 1 24 12 106 5 . 13 102 65 4 . 45 . 34 128 21 17 105 Critical Strikes 24 | . . . 1 . . . 3 4 . . 7 . 1 1 4 . 3 Damage Taken 10894 | 10 302 172 1349 116 . 129 1584 1253 104 . 784 . 526 1478 670 412 2005 Core 1407 | . 42 51 101 16 . 18 169 122 14 . 181 . 62 327 . . 304 Absorbed by Shields 196 | . . . . . . . 140 56 . . . . . . . . . Reduced by Siege Mode 161 | . . . . . . . . . . . . . . . 44 27 90 Redirected to Shielding 82 | . . . . . . . . . . . . . 21 46 15 . . Regen/Repaired (Parts) 374 | . . . 166 . . . 49 . . . . . 159 . . . . Core Remaining (%) 68 | 100 . 62 . . . 66 . . . 44 . . . . . . . Volleys Fired 986 | 11 147 53 242 22 . 17 166 64 33 . 54 . 37 21 20 57 42 Largest 2 | 2 2 2 2 2 . 2 2 1 1 . 1 . 1 1 2 2 2 Hottest 161 | 60 123 100 145 100 . 90 90 50 50 . 80 . 113 113 115 115 161 Shots Fired 1482 | 22 247 90 421 32 . 33 253 64 34 . 54 . 37 21 28 68 78 Gun 1084 | 22 212 74 378 18 . 31 195 . . . . . . 2 17 68 67 Cannon 188 | . . . . 6 . 2 43 59 34 . 24 . 8 1 . . 11 Launcher 135 | . . 1 22 6 . . 15 5 . . 28 . 29 18 11 . . Special 75 | . 35 15 21 2 . . . . . . 2 . . . . . . Kinetic 1071 | 11 206 74 309 6 . 2 220 59 34 . 24 . . 1 9 57 59 Thermal 140 | 11 41 15 21 2 . . . . . . 2 . 8 2 8 11 19 Explosive 100 | . . 1 22 6 . . 15 5 . . 19 . 14 7 11 . . Electromagnetic 171 | . . . 69 18 . 31 18 . . . 9 . 15 11 . . . Robot Hit Streak 29 | 3 15 13 24 18 . 5 21 14 6 . 4 . 5 8 28 29 20 Robot Miss Streak 7 | 2 6 3 4 6 . 6 4 3 1 . 2 . 1 7 1 2 2 Penetration Max 1 | . . . . . . . . . . . . . . . . 1 1 Secondary Targets 8 | . . . 3 1 . 1 1 . . . . . . . . . 2 Max Gunslinging Chain 1 | . . . 1 1 . 1 1 . . . . . . . . . 1 Shots Hit Robots 924 | 13 92 38 247 12 4 11 159 42 11 2 71 . 44 53 14 54 57 Core Hits 617 | 9 41 15 130 14 . 7 87 25 3 . 90 . 59 37 40 34 26 Critical Kills 9 | . . 1 1 . . . . . . . . . . . . 6 1 Critical Parts Destroyed 7 | . . . . . . . . . . . . . . . . 4 3 Critical Strikes 36 | . . 1 1 . . . 1 4 1 . 6 . 1 6 . 10 5 Burn 1 | . . . . . . . . . . . . . . . . . 1 Destroy 16 | . . 1 1 . . . . . . . . . . . . 10 4 Blast 6 | . . . . . . . 1 4 1 . . . . . . . . Sever 8 | . . . . . . . . . . . 1 . 1 6 . . . Impale 5 | . . . . . . . . . . . 5 . . . . . . Melee Attacks 368 | . . . . . 4 . 3 . 6 2 197 . 85 58 . . 13 Impact 13 | . . . . . . . . . . . . . . . . . 13 Slashing 233 | . . . . . . . 3 . . . 88 . 84 58 . . . Piercing 105 | . . . . . . . . . . . 105 . . . . . . Sneak Attacks 73 | . . . . . 4 . . . 6 2 39 . 14 6 . . 2 Combat Hostiles 1 | . . . . . . . . . . . 1 . . . . . . Follow-up Attacks . | . . . . . . . . . . . . . . . . . . Damage Inflicted 36968 | 136 2148 694 6027 430 . 246 4555 2596 305 . 5993 . 6099 3129 1338 1478 1794 Guns 11719 | 136 1345 552 3627 178 . 128 2357 . . . . . . 20 406 1478 1492 Cannons 3414 | . . . . . . . 786 2285 268 . 75 . . . . . . Explosions 14047 | . 771 118 2400 252 . 118 1411 305 37 . 2628 . 3829 1246 932 . . Melee 7705 | . . . . . . . . . . . 3279 . 2270 1863 . . 293 Ramming 24 | . 8 . . . . . 1 6 . . . . . . . . 9 Kinetic 13290 | 57 1312 552 3338 . . . 2945 2285 268 . 75 . . . 204 1205 1049 Thermal 2859 | 79 730 24 . . . 118 . . . . 771 . 199 20 202 273 443 Explosive 10520 | . . 118 2393 252 . . 1411 305 37 . 1264 . 3097 711 932 . . Electromagnetic 2570 | . 98 . 296 178 . 128 198 . . . 604 . 533 535 . . . Impact 293 | . . . . . . . . . . . . . . . . . 293 Slashing 5134 | . . . . . . . . . . . 1001 . 2270 1863 . . . Piercing 2278 | . . . . . . . . . . . 2278 . . . . . . Highest Corruption 8 | . . . 2 2 2 2 . 3 3 . 8 . 3 . . . 2 Average Corruption 2 | . . . 2 2 2 2 . 2 3 . 5 . 1 . . . 1 Corruption Purged 11 | . . . . . . . . . . . 8 . 3 . . . . Corruption Blocked . | . . . . . . . . . . . . . . . . . . Effects 146 | . . . 28 18 13 11 . 5 25 . 29 . 17 . . . . Message Errors 38 | . . . 8 3 1 4 . 2 6 . 9 . 5 . . . . Matter Fused 34 | . . . 7 3 5 1 . . 4 . 10 . 4 . . . . Heat Flow Errors 14 | . . . 2 2 3 . . . 4 . 2 . 1 . . . . Energy Discharges 22 | . . . 5 3 2 2 . 1 4 . 1 . 4 . . . . Parts Fused 2 | . . . 1 . . . . . . . 1 . . . . . . Data Loss (minor) 19 | . . . 1 3 1 3 . 2 4 . 4 . 1 . . . . Data Loss (major) 8 | . . . 3 2 1 . . . . . 1 . 1 . . . . Misfires 6 | . . . 1 2 . 1 . . 2 . . . . . . . . Alerts 2 | . . . . . . . . . . . 1 . 1 . . . . Weapon Failures 1 | . . . . . . . . . 1 . . . . . . . . Overload Shots . | . . . . . . . . . . . . . . . . . . Overflow Damage 2594 | . 232 . 103 . . 1 186 226 . . 683 . 800 287 . . 76 Projectiles 341 | . . . . . . . 115 226 . . . . . . . . . Explosions 906 | . 232 . 103 . . 1 71 . . . 190 . 285 24 . . . Melee 1347 | . . . . . . . . . . . 493 . 515 263 . . 76 Knockbacks 15 | . . . . . . . 3 11 . . . . . . . . 1 Impact 1 | . . . . . . . . . . . . . . . . . 1 Kinetic 14 | . . . . . . . 3 11 . . . . . . . . . Secondary . | . . . . . . . . . . . . . . . . . . Self-Inflicted Damage 214 | . . . . 48 . 24 52 3 52 . 35 . . . . . . Shots 7 | . . . . 2 . 1 2 . 1 . 1 . . . . . . Rammed 3 | . 1 . . . . . 1 1 . . . . . . . . . Targets Rammed 4 | . 1 . . . . . 1 1 . . . . . . . . 1 Kicked . | . . . . . . . . . . . . . . . . . . Crushed 1 | . . . . . . . . . . . . . . . . . 1 Highest Temperature 349 | 66 111 180 252 175 267 228 188 145 244 . 160 . 240 69 129 186 349 Average Temperature 40 | 30 23 50 36 38 122 84 28 42 35 . 21 . 65 20 68 83 118 Received Heat Transfer 3265 | 6 168 90 519 9 . . 730 537 18 . 102 . 126 450 54 36 420 Siege Activations 14 | . . . . . . . . . . . . . . . 2 6 6 Total Turns 257 | . . . . . . . . . . . . . . . 45 129 83 Longest Duration 47 | . . . . . . . . . . . . . . . 31 37 47 Martial Activations . | . . . . . . . . . . . . . . . . . . Shielding Activations . | . . . . . . . . . . . . . . . . . . Robots Disrupted . | . . . . . . . . . . . . . . . . . . Combat Hostiles . | . . . . . . . . . . . . . . . . . . Robots Corrupted 5 | . . . . . . . . . . . 1 . . 2 . . 2 Combat Hostiles 3 | . . . . . . . . . . . . . . 2 . . 1 Parts Fried 9 | . . . . . . . . . . . . . 2 4 . . 3 Impact Corruptions 4 | . . . . . . . . . . . . . . . . . 4 Robots Melted . | . . . . . . . . . . . . . . . . . . Combat Hostiles . | . . . . . . . . . . . . . . . . . . Parts Melted 7 | . 1 . . . . 1 . . . . . . . . . 2 3 Heat Transferred 3559 | 175 525 50 . . . 200 . . . . 530 . 150 50 450 625 804 Parts Sabotaged . | . . . . . . . . . . . . . . . . . . Parts Stolen . | . . . . . . . . . . . . . . . . . . Parts Stripped . | . . . . . . . . . . . . . . . . . . Power Chain Reactions 9 | . . . . 1 . 3 1 . . . 1 . 3 . . . . Alert | -11 -10 -10 -9 -9 -9 -8 -8 -8 -8 -8 -6 -6 -6 -6 -6 -6 -6 ------- Run | Yrd Mat Min Mat Min Exi Min Mat Sto Rec Scr Fac Was Fac Ext Cet Arc Hub Maximum Alert Level 4 | . 2 1 4 2 . 1 2 2 1 . 4 2 3 1 1 . 1 Low Security (%) 42 | 100 68 20 15 . . 98 43 9 94 . 49 . 29 27 98 100 96 Level 1 24 | . 9 79 12 67 . 1 19 58 5 . 2 61 16 72 1 . 3 Level 2 16 | . 21 . 17 32 . . 36 32 . . 7 38 26 . . . . Level 3 10 | . . . 33 . . . . . . . 17 . 27 . . . . Level 4 6 | . . . 20 . . . . . . . 23 . . . . . . Level 5 . | . . . . . . . . . . . . . . . . . . High Security . | . . . . . . . . . . . . . . . . . . Max Security . | . . . . . . . . . . . . . . . . . . Sterilizations 1 | . . . 1 . . . . . . . . . . . . . . Peak Influence 1570 | 35 625 328 1570 609 . 200 486 509 217 . 1214 423 1031 380 200 87 220 Initial 609 | . 13 242 111 609 . . . 201 190 . . 423 219 212 200 . . Average 343 | 10 150 250 697 354 . 76 254 336 133 . 500 374 418 245 29 28 67 Influence Increases 12494 | 45 991 418 2227 136 . 291 1026 945 526 . 1946 . 1922 1040 292 194 495 Destroy 0b10 Robot/C 4520 | 20 200 140 1000 . . 120 540 460 60 . 460 . 540 540 160 80 200 Destroy 0b10 Robot/NC 1015 | 25 100 20 190 10 . 5 120 45 . . 195 . 160 45 10 45 45 Destroy Leader 1028 | . 50 30 252 . . 20 146 132 . . 146 . 162 36 . . 54 Allied During Kill 502 | . . . . . . . . 185 15 . . . 92 163 47 . . Successful Hack 369 | . 38 . 38 . . . 63 8 54 . 60 . 80 6 . . 22 Select Force Hacks 260 | . 30 . 30 . . . . . 150 . . . . . . . 50 Disable Machine 2460 | . 405 195 420 60 . 135 . 45 225 . 480 . 360 45 . 60 30 Destroy Structure 1290 | . 123 18 267 66 . 11 127 55 22 . 200 . 288 25 60 9 19 Partial Spotted 165 | . . . . . . . . . . . 120 . 30 15 . . . Lose Combat Pursuer 885 | . 45 15 30 . . . 30 15 . . 285 . 210 165 15 . 75 Influence Decreases 12321 | 25 388 755 949 1477 223 291 548 933 902 114 737 896 1800 1117 650 194 322 Entered New Map 3693 | . 7 381 175 955 223 . . 277 300 114 . 786 94 223 158 . . Time Decay 6430 | 25 371 374 734 522 . 291 508 506 452 . 634 70 666 644 222 179 232 Lost Part 510 | . 10 . 40 . . . 30 50 . . 40 . . 210 40 . 90 Lost Ally 788 | . . . . . . . 10 100 . . 63 40 290 40 230 15 . Purge Threat 900 | . . . . . . . . . 150 . . . 750 . . . . Squads Dispatched 68 | . 4 . 8 . . . 6 2 . . 28 . 14 2 . . 4 Investigation 24 | . 2 . 1 . . . . 1 . . 9 . 8 1 . . 2 Extermination 14 | . . . . . . . . . . . 9 . 4 . . . 1 Reinforcement 18 | . 2 . 5 . . . 2 1 . . 4 . 2 1 . . 1 Assault 2 | . . . 2 . . . . . . . . . . . . . . Garrison 10 | . . . . . . . 4 . . . 6 . . . . . . Intercept . | . . . . . . . . . . . . . . . . . . Searches Triggered . | . . . . . . . . . . . . . . . . . . Unchained Authorized 1 | . . . . . . . . . . . . . . 1 . . . Construction Impeded 7 | . . . 2 . . . 1 . . . 2 . 1 1 . . . Haulers Reinforced 1 | . . . . . . . . . . . . . 1 . . . . Active Scanning Responses . | . . . . . . . . . . . . . . . . . . Cargo Convoy Interrupts . | . . . . . . . . . . . . . . . . . . Stealth | -11 -10 -10 -9 -9 -9 -8 -8 -8 -8 -8 -6 -6 -6 -6 -6 -6 -6 --------- Run | Yrd Mat Min Mat Min Exi Min Mat Sto Rec Scr Fac Was Fac Ext Cet Arc Hub Distress Signals 25 | . . . 2 . . . 2 3 1 . 9 . 2 3 2 . 1 Communications Jammed . | . . . . . . . . . . . . . . . . . . Distress Signals . | . . . . . . . . . . . . . . . . . . Times Spotted 402 | 1 20 8 64 11 . 6 46 24 3 . 82 1 38 43 8 21 26 Peak Tracking Total 9 | 1 3 3 5 2 . 3 4 6 1 . 9 1 7 4 4 1 8 Tactical Retreats 46 | . 3 1 2 3 . . 1 1 . . 17 . 9 5 1 . 3 ECM-based Alert Blocks 17 | . . . . . . . . . . . 17 . . . . . . Traps | -11 -10 -10 -9 -9 -9 -8 -8 -8 -8 -8 -6 -6 -6 -6 -6 -6 -6 ------- Run | Yrd Mat Min Mat Min Exi Min Mat Sto Rec Scr Fac Was Fac Ext Cet Arc Hub Traps Triggered 21 | . . . 3 . . . . 6 . . 5 . 2 4 . . 1 Indirectly 4 | . . . . . . . . . . . 4 . . . . . . Trap Hack Attempts . | . . . . . . . . . . . . . . . . . . Triggered . | . . . . . . . . . . . . . . . . . . Disarmed . | . . . . . . . . . . . . . . . . . . Reprogrammed . | . . . . . . . . . . . . . . . . . . Reused . | . . . . . . . . . . . . . . . . . . Traps Extracted . | . . . . . . . . . . . . . . . . . . Installed . | . . . . . . . . . . . . . . . . . . Triggered . | . . . . . . . . . . . . . . . . . . Most Traps Carried 2 | . . . . . . . . . . 2 2 2 2 2 . . . Objects Rigged 10 | . 3 . 1 . . . . . . . . . 6 . . . . Exploded 5 | . 2 . . . . . . . . . . . 3 . . . . Machines | -11 -10 -10 -9 -9 -9 -8 -8 -8 -8 -8 -6 -6 -6 -6 -6 -6 -6 ---------- Run | Yrd Mat Min Mat Min Exi Min Mat Sto Rec Scr Fac Was Fac Ext Cet Arc Hub Machines Disabled 170 | . 29 13 30 6 . 9 . 3 15 . 32 . 24 3 . 4 2 Max in Single Turn 7 | . 3 1 3 2 . 3 . 1 2 . 7 . 6 1 . 1 1 Garrison Access 7 | . . . . . . . . 1 . . 2 . 4 . . . . Network Hub 1 | . . . . . . . . . . . . . . . . . 1 Energy Cycler 1 | . . . . . . . . . . . . . . 1 . . . Machines Repaired . | . . . . . . . . . . . . . . . . . . Machines Dismantled . | . . . . . . . . . . . . . . . . . . Machines Sabotaged 1 | . . . . . . . . . . . . . . . . . 1 Overloaded Fab Kills . | . . . . . . . . . . . . . . . . . . Hacking | -11 -10 -10 -9 -9 -9 -8 -8 -8 -8 -8 -6 -6 -6 -6 -6 -6 -6 --------- Run | Yrd Mat Min Mat Min Exi Min Mat Sto Rec Scr Fac Was Fac Ext Cet Arc Hub Machines Accessed 145 | . 7 . 11 . 4 1 15 8 13 7 33 . 34 6 1 . 5 Terminals 80 | . 6 . 7 . . 1 9 7 6 . 16 . 17 5 1 . 5 Fabricators 2 | . . . . . . . . . . . 2 . . . . . . Repair Stations 6 | . . . 1 . . . 1 . . . 1 . 3 . . . . Recycling Units 26 | . 1 . 1 . . . 2 . 5 . 8 . 8 1 . . . Scanalyzers 9 | . . . 2 . . . 2 . . . 3 . 2 . . . . Garrison Access 9 | . . . . . . . 1 1 . . 3 . 4 . . . . Total Hacks 483 | . 24 . 36 . 49 1 59 21 54 49 80 . 78 17 2 . 13 Successful 337 | . 13 . 21 . 49 . 27 11 45 49 45 . 58 10 1 . 8 Failed 143 | . 10 . 14 . . 1 32 10 9 . 34 . 20 7 1 . 5 Catastrophic 14 | . . . 1 . . 1 3 2 . . 6 . 1 . . . . Database Lockouts 3 | . 1 . 1 . . . . . . . 1 . . . . . . Manual 193 | . 18 . 19 . . 1 17 5 23 . 54 . 33 12 . . 11 Terminals 247 | . 23 . 22 . . 1 36 19 21 . 51 . 45 14 2 . 13 Fabricators 2 | . . . . . . . . . . . 2 . . . . . . Repair Stations 16 | . . . 6 . . . 3 . . . 2 . 5 . . . . Recycling Units 41 | . 1 . 3 . . . 5 . 9 . 9 . 11 3 . . . Scanalyzers 39 | . . . 5 . . . 11 . . . 13 . 10 . . . . Garrison Access 16 | . . . . . . . 4 2 . . 3 . 7 . . . . Terminal Hacks 199 | . 9 . 7 . 49 . 11 7 33 49 9 . 20 2 1 . 2 Record 126 | . . . . . 49 . . . 25 48 1 . 3 . . . . Part Schematic 6 | . 2 . . . . . 1 . 2 . . . 1 . . . . Robot Schematic 2 | . 1 . . . . . 1 . . . . . . . . . . Robot Analysis 6 | . 1 . 1 . . . . . 3 . 1 . . . . . . Prototype ID Bank 16 | . 3 . 2 . . . 2 2 1 . 1 . 4 1 . . . Open Door 3 | . . . . . . . . 1 . . . . 1 . 1 . . Level Access Points 1 | . . . . . . . . . . . . . . . . . 1 Branch Access Points 2 | . . . 1 . . . 1 . . . . . . . . . . Terminal Index 2 | . . . . . . . . 1 1 . . . . . . . . Recycling Unit Index 1 | . . . . . . . . . . . 1 . . . . . . Scanalyzer Index 1 | . . . . . . . 1 . . . . . . . . . . Alert Level 1 | . . . . . . . . . . . . . 1 . . . . Unreport Threat 6 | . . . . . . . . . 1 . . . 5 . . . . Locate Traps 6 | . 1 . 2 . . . 1 . . . . . 1 1 . . . Reinforcement Status 1 | . . . . . . . 1 . . . . . . . . . . Recall Investigation 2 | . . . . . . . . . . . 2 . . . . . . Recall Reinforcements 1 | . . . . . . . 1 . . . . . . . . . . Hauler Manifests 6 | . 1 . 1 . . . . . . . 2 . 2 . . . . Registered Components 3 | . . . . . . . . 1 . . 1 . 1 . . . . Registered Prototypes 1 | . . . . . . . . 1 . . . . . . . . . Zone Layout 5 | . . . . . . . 2 1 . . . . 1 . . . 1 Proto ID Catalog 1 | . . . . . . . . . . 1 . . . . . . . Fabricator Hacks . | . . . . . . . . . . . . . . . . . . Repair Station Hacks 12 | . . . 4 . . . 3 . . . 1 . 4 . . . . Scan Component 7 | . . . 2 . . . 2 . . . 1 . 2 . . . . Repair 5 | . . . 2 . . . 1 . . . . . 2 . . . . Recycling Unit Hacks 3 | . . . . . . . 2 . . . . . . 1 . . . Retrieve Components 3 | . . . . . . . 2 . . . . . . 1 . . . Scanalyzer 26 | . . . 2 . . . 5 . . . 9 . 10 . . . . Insert Component 7 | . . . . . . . 1 . . . 3 . 3 . . . . Analyze 9 | . . . . . . . 3 . . . 2 . 4 . . . . Retrieve Study 10 | . . . 2 . . . 1 . . . 4 . 3 . . . . Garrison Access Hacks 7 | . . . . . . . . 1 . . 2 . 4 . . . . Seal Access 7 | . . . . . . . . 1 . . 2 . 4 . . . . Unauthorized Hacks 90 | . 4 . 8 . . . 6 3 12 . 24 . 20 7 . . 6 Terminals 62 | . 3 . 4 . . . 5 3 7 . 16 . 11 7 . . 6 Track 6 | . . . . . . . 2 . . . 1 . 1 . . . 2 Assimilate 7 | . . . . . . . 1 . . . 5 . 1 . . . . Botnet 18 | . 2 . 2 . . . 2 2 2 . 2 . 2 2 . . 2 Detonate 3 | . 1 . 1 . . . . . . . . . 1 . . . . Disrupt 2 | . . . . . . . . . . . . . 1 1 . . . Operators 3 | . . . 1 . . . . 1 . . 1 . . . . . . Skim 21 | . . . . . . . . . 5 . 7 . 5 4 . . . Sabotage 2 | . . . . . . . . . . . . . . . . . 2 Fabricators . | . . . . . . . . . . . . . . . . . . Repair Stations 1 | . . . . . . . . . . . . . 1 . . . . Mechanics 1 | . . . . . . . . . . . . . 1 . . . . Recycling Units 26 | . 1 . 3 . . . 1 . 5 . 8 . 8 . . . . Reject 1 | . . . 1 . . . . . . . . . . . . . . Recyclers 1 | . . . 1 . . . . . . . . . . . . . . Mask 2 | . . . 1 . . . 1 . . . . . . . . . . Tunnel 6 | . 1 . . . . . . . 5 . . . . . . . . Fedlink 16 | . . . . . . . . . . . 8 . 8 . . . . Scanalyzers 1 | . . . 1 . . . . . . . . . . . . . . Extract 1 | . . . 1 . . . . . . . . . . . . . . Garrison Access . | . . . . . . . . . . . . . . . . . . Data Cores Recovered 1 | . 1 . . . . . . . . . . . . . . . . Used 1 | . 1 . . . . . . . . . . . . . . . . Hacking Detections 95 | . 5 . 9 . . 1 14 7 8 . 20 . 21 6 1 . 3 Full Trace Events 1 | . . . . . . . . . . . 1 . . . . . . Feedback Events . | . . . . . . . . . . . . . . . . . . Feedback Blocked . | . . . . . . . . . . . . . . . . . . Robot Schematics Acquired 2 | . 1 . . . . . 1 . . . . . . . . . . Robots Built . | . . . . . . . . . . . . . . . . . . Authchips . | . . . . . . . . . . . . . . . . . . Time . | . . . . . . . . . . . . . . . . . . Total Robot Build Rating . | . . . . . . . . . . . . . . . . . . Part Schematics Acquired 12 | . 2 . 1 . . . 1 . 2 . 2 . 4 . . . . Parts Built . | . . . . . . . . . . . . . . . . . . Authchips . | . . . . . . . . . . . . . . . . . . Time . | . . . . . . . . . . . . . . . . . . Total Part Build Rating . | . . . . . . . . . . . . . . . . . . Part Studies Acquired 10 | . . . 2 . . . 1 . . . 4 . 3 . . . . Parts Repaired 5 | . . . 2 . . . 1 . . . . . 2 . . . . Time 171 | . . . 52 . . . 32 . . . . . 87 . . . . Parts Recycled . | . . . . . . . . . . . . . . . . . . Recycled Matter . | . . . . . . . . . . . . . . . . . . Retrieved Matter . | . . . . . . . . . . . . . . . . . . Retrieved Components 19 | . . . . . . . 9 . . . . . . 10 . . . Parts Scanalyzed 5 | . . . . . . . 1 . . . 1 . 3 . . . . Part Schematics Acquired 5 | . . . . . . . . . . . 2 . 3 . . . . Parts Damaged . | . . . . . . . . . . . . . . . . . . Bothacking | -11 -10 -10 -9 -9 -9 -8 -8 -8 -8 -8 -6 -6 -6 -6 -6 -6 -6 ------------ Run | Yrd Mat Min Mat Min Exi Min Mat Sto Rec Scr Fac Was Fac Ext Cet Arc Hub Used RIF Installer . | . . . . . . . . . . . . . . . . . . Robots Hacked 15 | . . . . . 4 . . . 5 2 4 . . . . . . Non-combat 10 | . . . . . 3 . . . 3 . 4 . . . . . . Combat 5 | . . . . . 1 . . . 2 2 . . . . . . . Robot Hacks Applied 16 | . . . . . 4 . . . 6 2 4 . . . . . . parse_system 13 | . . . . . 4 . . . 6 2 1 . . . . . . find_chute 1 | . . . . . . . . . . . 1 . . . . . . find_fabricator 1 | . . . . . . . . . . . 1 . . . . . . find_recycling 1 | . . . . . . . . . . . 1 . . . . . . Relay Couplers Released 3 | . . . . . . . . . . . . . 3 . . . . Programmers 3 | . . . . . . . . . . . . . 3 . . . . Fabnet Peak Effective % . | . . . . . . . . . . . . . . . . . . Robots Rewired 14 | . . . . . . . . . . . . . . 14 . . . Allies Hacked 2 | . . . . . . . . . . . . . 2 . . . . Hacks Repelled . | . . . . . . . . . . . . . . . . . . Allies | -11 -10 -10 -9 -9 -9 -8 -8 -8 -8 -8 -6 -6 -6 -6 -6 -6 -6 -------- Run | Yrd Mat Min Mat Min Exi Min Mat Sto Rec Scr Fac Was Fac Ext Cet Arc Hub Total Allies 55 | . . . . . . . 1 10 . . 5 20 1 18 . . . Largest Group 21 | . . . . . . . 1 10 4 4 4 21 19 13 13 1 . Highest-Rated Group 728 | . . . . . . . 26 173 64 64 64 728 678 358 358 29 . Highest-Rated Ally 46 | . . . . . . . 26 29 16 16 26 46 46 39 39 29 . Total Orders 4 | . . . . . . . . 2 . . 2 . . . . . . EXPLORE 3 | . . . . . . . . 2 . . 1 . . . . . . RETURN 1 | . . . . . . . . . . . 1 . . . . . . Ally Attacks 334 | . . . . . . . . 79 2 . 17 32 84 64 56 . . Total Damage 5811 | . . . . . . . . 891 17 . 189 831 1728 1138 1017 . . Kills 41 | . . . . . . . . 6 . . 1 1 12 16 5 . . Allies Corrupted . | . . . . . . . . . . . . . . . . . . Allies Melted . | . . . . . . . . . . . . . . . . . . Intel | -11 -10 -10 -9 -9 -9 -8 -8 -8 -8 -8 -6 -6 -6 -6 -6 -6 -6 ------- Run | Yrd Mat Min Mat Min Exi Min Mat Sto Rec Scr Fac Was Fac Ext Cet Arc Hub Active Infowar (turns) 21605 | 17 1935 804 2497 . . . 2268 1365 1120 2920 3305 156 2490 1798 234 161 535 Optics 2 | . . . 2 . . . . . . . . . . . . . . Sensors 9494 | . . . 658 . . . . . . 370 3234 156 2359 1792 234 159 532 Terrain 303 | 17 286 . . . . . . . . . . . . . . . . Structural 15692 | . . . 1798 . . . 2259 1365 1120 2920 2556 156 2444 380 . 159 535 Seismic 6321 | 12 1852 804 1767 . . . 1736 150 . . . . . . . . . T.N.C. 1 | . . . . . . . . . . . 1 . . . . . . ECM 91 | . . . . . . . . . . 2 89 . . . . . . Robot Analysis Total 6 | . 1 . 1 . . . . . 3 . 1 . . . . . . Derelict Logs Recovered 3 | . . 1 . 2 . . . . . . . . . . . . . Drone Launches 4 | . . . . . . . . 2 . . 2 . . . . . . Drone Recoveries 3 | . . . . . . . . 1 . . 2 . . . . . . Exploration | -11 -10 -10 -9 -9 -9 -8 -8 -8 -8 -8 -6 -6 -6 -6 -6 -6 -6 ------------- Run | Yrd Mat Min Mat Min Exi Min Mat Sto Rec Scr Fac Was Fac Ext Cet Arc Hub Turns Passed 28548 | 125 2105 877 3671 1459 820 877 2648 1365 1120 2920 3480 156 2611 2332 747 529 706 Spaces Moved 22287 | 67 1187 555 1642 598 429 422 1236 667 683 1988 5853 229 4107 1811 376 180 257 Core 65 | 13 . . . . . . . . . . . . . 52 . . . Treads 719 | . . . . . . . . . . . . . . . 282 180 257 Legs 439 | 54 288 . . . . . . . . . . . . 97 . . . Wheels 10098 | . 899 555 1642 598 429 422 1236 667 683 1988 . . . 885 94 . . Hover 8157 | . . . . . . . . . . . 3044 229 4107 777 . . . Flight 2809 | . . . . . . . . . . . 2809 . . . . . . Fastest Speed 21 | 50 110 110 115 175 190 190 145 145 145 145 21 52 52 50 95 160 160 Average Speed 98 | 106 121 119 151 185 190 190 165 156 145 145 38 52 52 97 145 160 160 Slowest Speed 310 | 120 125 125 295 190 190 190 310 160 145 145 108 52 52 190 160 160 160 Overloaded Moves . | . . . . . . . . . . . . . . . . . . Propulsion Burnouts . | . . . . . . . . . . . . . . . . . . Robots Hopped 18 | . . . . . . . . . . . 18 . . . . . . Potential Cave-ins . | . . . . . . . . . . . . . . . . . . Cave-ins Triggered . | . . . . . . . . . . . . . . . . . . Exploration Rate (%) 84 | 5 98 99 99 100 91 98 91 98 99 96 93 96 86 91 65 77 30 Regions Visited 17 Branch Regions 11 Pre-discovered Areas 16 | . 1 . . 1 1 . . 1 7 . 3 . 2 . . . . Known Exits Taken 9 | . . . 1 . . 1 1 . 1 1 . . 1 1 1 1 . Unknown Exits Taken 6 | 1 1 1 . 1 1 . . 1 . . . . . . . . . Scrap Searched 17 | . . 2 . 4 . 1 . . . 10 . . . . . . . Spaces Dug 268 | . 5 9 15 23 . . 22 1 3 . 113 . 67 . . . 10 Terrain Destroyed 1564 | . 158 18 274 78 . 11 128 67 21 . 214 . 369 50 144 15 17 Melee 148 | . . . . . . . 3 . . . 100 . 40 . . . 5 Projectile 125 | . 7 . 5 2 . . 34 18 10 . 13 . 7 . 2 15 12 AOE 1291 | . 151 18 269 76 . 11 91 49 11 . 101 . 322 50 142 . . Terrain Rammed . | . . . . . . . . . . . . . . . . . . Walls Destroyed . | . . . . . . . . . . . . . . . . . . Machines Disabled . | . . . . . . . . . . . . . . . . . . Actions | -11 -10 -10 -9 -9 -9 -8 -8 -8 -8 -8 -6 -6 -6 -6 -6 -6 -6 --------- Run | Yrd Mat Min Mat Min Exi Min Mat Sto Rec Scr Fac Was Fac Ext Cet Arc Hub Total 26787 | 97 1574 658 2418 913 432 464 1626 898 777 2029 6652 265 4391 2251 546 352 444 Wait 2222 | 8 182 40 392 267 . 19 136 114 52 7 379 32 77 202 130 79 106 Move 22235 | 66 1186 554 1641 597 428 421 1235 666 682 1987 5817 228 4106 1810 375 179 257 Hop 18 | . . . . . . . . . . . 18 . . . . . . Pick Up 160 | 5 20 1 34 1 . 1 14 8 . 12 24 2 10 5 5 15 3 Fast Attach 66 | 7 1 . 10 . . . 3 4 . 1 16 . 3 13 5 1 2 Attach 53 | . . . 9 . . 1 8 3 2 3 15 . 1 5 3 1 2 Detach 29 | . . . 4 1 . . 4 1 1 . 6 . 1 3 6 2 . Swap 363 | . 23 9 59 19 . 4 38 10 . 5 82 1 57 31 2 9 14 Drop 164 | . 14 1 27 6 . 1 18 11 1 12 44 2 8 6 . 9 4 Fire 986 | 11 147 53 242 22 . 17 166 64 33 . 54 . 37 21 20 57 42 Melee 368 | . . . . . 4 . 3 . 6 2 197 . 85 58 . . 13 Ram 1 | . . . . . . . . 1 . . . . . . . . . Kick . | . . . . . . . . . . . . . . . . . . Crush 3 | . 1 . . . . . 1 . . . . . . . . . 1 Escape Stasis 53 | . . . . . . . . 16 . . . . 6 31 . . . Rewire 66 | . . . . . . . . . . . . . . 66 . . . Trap . | . . . . . . . . . . . . . . . . . . Miscellaneous . | . . . . . . . . . . . . . . . . . . Route ------- -11/Scrapyard -10/Materials (discovered 6 exits: *Mat x3 / [*Min x2] / [*Sub]) -10/Mines (discovered 2 exits: *Mat x2) -9/Materials (discovered 5 exits: *Mat x3 / *Min x2) -9/Mines (discovered 3 exits: *Mat x2 / *Exi) -9/Exiles (discovered 2 exits: *Min x2) -8/Mines (discovered 2 exits: *Mat x2) -8/Materials (discovered 3 exits: [*Fac x2] / *Sto) -8/Storage (discovered 2 exits: [*Fac] / *Rec) -8/Recycling (discovered 2 exits: *Fac / *Scr) -8/Scraptown (discovered 2 exits: *Fac x2) -6/Factory (discovered 8 exits: *Fac x4 / *Low x2 / *Ext x2) -6/Waste -6/Factory (discovered 8 exits: *Fac x4 / *Low x2 / *Ext x2) -6/Extension (discovered 3 exits: *Fac x2 / *Cet) -6/Cetus (discovered 2 exits: *Fac / *Arc) -6/Archives (discovered 3 exits: *Fac / *Hub x2) -6/Hub_04(d) (discovered 4 exits: *Fac x4) History --------- Turn | Location | Event 2 | -11/Scrapyard | Met Revision 17 72 | -11/Scrapyard | Discovered new exit (range 8) 126 | -11/Scrapyard | Entered Materials 127 | -10/Materials | Met a group of wandering Federalists 210 | -10/Materials | Discovered new exit (range 16) 242 | -10/Materials | Discovered new exit (range 6) 311 | -10/Materials | Build established: Mutant 352 | -10/Materials | Discovered new exit (range 11) 742 | -10/Materials | Discovered new exit (range 16) 769 | -10/Materials | Central database locked down 957 | -10/Materials | Discovered new exit (range 7) 1103 | -10/Materials | Discovered new exit (range 16) 2231 | -10/Materials | Entered Mines 2260 | -10/Mines | Learned 4 Materials zone layouts 2482 | -10/Mines | Received a Rocket Launcher from a helpful Derelict 2545 | -10/Mines | Discovered new exit (range 6) 2760 | -10/Mines | Found a hidden stash of uninstalled traps 3090 | -10/Mines | Discovered new exit (range 9) 3108 | -10/Mines | Entered Materials 3108 | -9/Materials | Evolved 2 slots: Utility x2 3109 | -9/Materials | Identified exit to Materials 3293 | -9/Materials | Repaired Lgt. Armor Plating 3320 | -9/Materials | Repaired Lgt. Treads 3941 | -9/Materials | Discovered new exit (range 16) 4615 | -9/Materials | Identified exit to Mines 4638 | -9/Materials | Discovered exit to Materials (range 14) 5108 | -9/Materials | First assault squad dispatched 5188 | -9/Materials | Build established: Hauler-Mutant 6044 | -9/Materials | Central database locked down 6659 | -9/Materials | Sterilization system engaged 6659 | -9/Materials | Non-combat units ordered to evacuate 6759 | -9/Materials | Combat units ordered to evacuate 6779 | -9/Materials | Entered Mines 6834 | -9/Mines | Learned location of Storage (-8) 6841 | -9/Mines | Learned 2 Materials zone layouts 6934 | -9/Mines | Found a damaged Exp. Sensor Array with a note attached 6938 | -9/Mines | Found Prototype Device 7041 | -9/Mines | Assembled infested the area 7046 | -9/Mines | Assisted by a Guerilla fighting off Assembled 7580 | -9/Mines | Joined a pair of Derelicts in attacking an 0b10 outpost 7834 | -9/Mines | Discovered exit to Materials (range 5) 8147 | -9/Mines | Discovered exit to Materials (range 5) 8202 | -9/Mines | Deemed a non-threat by the Exiles lab entrance 8202 | -9/Mines | Discovered new exit (range 5) 8238 | -9/Mines | Entered Exiles 8263 | -9/Exiles | Discovered new exit (range 15) 8290 | -9/Exiles | Met 8R-AWN 8320 | -9/Exiles | Met EX-HEX 8407 | -9/Exiles | Learned location of Zion (-6) 8409 | -9/Exiles | Met EX-DEC 8539 | -9/Exiles | Met EX-BIN 8749 | -9/Exiles | Visited The Gauntlet 9042 | -9/Exiles | Discovered new exit (range 10) 9058 | -9/Exiles | Entered Mines 9586 | -8/Mines | Discovered exit to Materials (range 10) 9639 | -8/Mines | Discovered exit to Materials (range 9) 9935 | -8/Mines | Entered Materials 9935 | -8/Materials | Evolved 2 slots: Propulsion x2 9999 | -8/Materials | Repaired Med. Armor Plating 10007 | -8/Materials | Discovered new exit (range 16) 10104 | -8/Materials | Identified exit to Storage 10505 | -8/Materials | Garrison activated, responded to threat 10703 | -8/Materials | Garrison activated, responded to threat 10763 | -8/Materials | Discovered new exit (range 11) 10953 | -8/Materials | Discovered new exit (range 6) 11517 | -8/Materials | Garrison activated, responded to threat 11665 | -8/Materials | Identified Exp. Sensor Array 11968 | -8/Materials | Build established: Mutant 12108 | -8/Materials | Garrison activated, responded to threat 12583 | -8/Materials | Entered Storage 12784 | -8/Storage | Lost 4 parts (1n2u1w) 12953 | -8/Storage | Used back door to open Recycling access 12953 | -8/Storage | Discovered new exit (range 5) 13228 | -8/Storage | Assisted by bots powering up and referring to "LRC-V3" 13523 | -8/Storage | Build established: Commander-Mutant 13625 | -8/Storage | Learned location of Armory (-3) 13678 | -8/Storage | Discovered new exit (range 16) 13774 | -8/Storage | Core integrity fell below 50% 13818 | -8/Storage | Lost 3 allies 13948 | -8/Storage | Entered Recycling 13948 | -8/Recycling | Accompanied by 4 allies 13949 | -8/Recycling | Met a Zionite searching for Scraptown 14333 | -8/Recycling | Identified exit to Scraptown 14344 | -8/Recycling | Discovered new exit (range 16) 14365 | -8/Recycling | Learned location of 1 exit from Extension 14484 | -8/Recycling | Scanned before Scraplab entrance 14504 | -8/Recycling | Entered Scraplab 15068 | -8/Recycling | Entered Scraptown 15068 | -8/Scraptown | Accompanied by 4 allies 15068 | -8/Scraptown | System corruption cleaned by C-Scrubber 15467 | -8/Scraptown | Discovered new exit (range 6) 15609 | -8/Scraptown | Visited Fellowship of the Rings 15650 | -8/Scraptown | Visited Bundlers 15767 | -8/Scraptown | Heard Great Nut preacher, LISTEN AND RECITE! 16002 | -8/Scraptown | Visited CPS Storage 16031 | -8/Scraptown | Visited Comm Corps 16086 | -8/Scraptown | Visited Red Mages 16194 | -8/Scraptown | Visited Cyclists 16299 | -8/Scraptown | Visited UFD Registry 16299 | -8/Scraptown | Registered with UFD as "Megaguard" 16344 | -8/Scraptown | Visited Derelict Rescue Squad 16356 | -8/Scraptown | Found DRS Beacon 16386 | -8/Scraptown | Visited Curators Association 16451 | -8/Scraptown | Visited Observation Area 16511 | -8/Scraptown | Visited Supply Room 16530 | -8/Scraptown | Visited Junk Repository 16563 | -8/Scraptown | Visited Research Penetration Think Tank 16598 | -8/Scraptown | Visited Scrap Suit Storage 16852 | -8/Scraptown | Visited Supply Room 16889 | -8/Scraptown | Visited Science Guys 16952 | -8/Scraptown | Visited DA-N13 Charitable Foundation 16966 | -8/Scraptown | Found DCF Scrap (32 items) 17123 | -8/Scraptown | Discovered new exit (range 5) 17891 | -8/Scraptown | Met Optimus 17891 | -8/Scraptown | Accepted into 0bPrime 17920 | -8/Scraptown | Build established: Commander-Assassin 17980 | -8/Scraptown | Identified exit to Factory 17988 | -8/Scraptown | Entered Factory 17988 | -6/Factory | Accompanied by 4 allies 17988 | -6/Factory | Evolved 4 slots: Propulsion x2, Utility x2 17989 | -6/Factory | Identified exit to Lower Caves 17989 | -6/Factory | Identified exit to Extension 18037 | -6/Factory | Discovered new exit (range 3) 18037 | -6/Factory | Identified exit to Factory 18136 | -6/Factory | Garrison activated, responded to threat 18225 | -6/Factory | Loaded intel: 8 recycling unit locations 18271 | -6/Factory | Learned location of Protoforge (-3) 18337 | -6/Factory | Noticed a derelict Sapper rigging charges 18400 | -6/Factory | Discovered exit to Factory (range 4) 18561 | -6/Factory | Learned Extension stockpile data 18618 | -6/Factory | Learned location of 1 exit from Cetus 18730 | -6/Factory | Learned location of Upper Caves (-4) 19056 | -6/Factory | Lost 3 parts (1n1u1w) 19266 | -6/Factory | Discovered exit to Extension (range 13) 19373 | -6/Factory | Build established: Hacker-Assassin 19713 | -6/Factory | Garrison activated, responded to threat 19962 | -6/Factory | Build established: Hacker-Scout 20084 | -6/Factory | Central database locked down 20469 | -6/Factory | Spotted B-75 Beast 20585 | -6/Factory | Build established: Hacker-Mutant 21195 | -6/Factory | Build established: Hacker-Scout 21362 | -6/Factory | Discovered exit to Factory (range 4) 21468 | -6/Factory | Manually triggered Chute Trap 21468 | -6/Factory | Sucked down chute 21468 | -6/Factory | Entered Waste 21469 | -6/Waste | Joined by Warlord forces that had cleared the area 21469 | -6/Waste | Identified exit to Factory 21478 | -6/Waste | 1 allies followed down the chute 21546 | -6/Waste | Found Prototype Hackware 21568 | -6/Waste | A Compactor rumbled back to life 21568 | -6/Waste | Spotted C-40 Crusher 21576 | -6/Waste | Allies destroyed C-40 Crusher 21624 | -6/Waste | Entered Factory 21624 | -6/Factory | Accompanied by 19 allies 22076 | -6/Factory | Loaded intel: 8 recycling unit locations 22300 | -6/Factory | Discovered exit to Lower Caves (range 15) 22374 | -6/Factory | Repaired Nova Cannon? 22403 | -6/Factory | Lost 4 allies 22553 | -6/Factory | Learned 2 Lower Caves zone layouts 22595 | -6/Factory | Learned location of 1 exit from Upper Caves 22644 | -6/Factory | Learned 12 Factory zone layouts 22653 | -6/Factory | Learned Extension terminal intel 22659 | -6/Factory | Loaded intel: 6 fabricator locations 22677 | -6/Factory | Learned location of Upper Caves (-5) 23007 | -6/Factory | Repaired Imp. Datajack? 23099 | -6/Factory | Identified Exp. Hacking Suite 24235 | -6/Factory | Entered Extension 24238 | -6/Extension | Loaded intel: 16 terminal locations 24934 | -6/Extension | Core integrity fell below 50% 24964 | -6/Extension | Energy Cycler disabled 24964 | -6/Extension | Rescued a captive Derelict 24964 | -6/Extension | Rescued a captive Derelict 24965 | -6/Extension | Rescued a captive Derelict 24966 | -6/Extension | Rescued a captive Derelict 24966 | -6/Extension | Rescued a captive Derelict 24966 | -6/Extension | Rescued a captive Derelict 24967 | -6/Extension | Rescued a captive Derelict 24969 | -6/Extension | Rescued a captive Derelict 24972 | -6/Extension | Rescued a captive Derelict 25199 | -6/Extension | Spotted B-75 Beast 25244 | -6/Extension | Lost 14 parts (2p1n6u5w) 25309 | -6/Extension | Build established: Commander-Mutant 25515 | -6/Extension | Spotted B-75 Beast 25527 | -6/Extension | Destroyed B-75 Beast 25539 | -6/Extension | Extracted ID and sensor layout for unrecognized location from A7's data core 25659 | -6/Extension | Discovered new exit (range 16) 25660 | -6/Extension | Discovered exit to Factory (range 15) 25697 | -6/Extension | Build established: Scavenger-Mutant 26236 | -6/Extension | Unchained authorized (CL-0N3) 26541 | -6/Extension | Identified exit to Cetus 26567 | -6/Extension | Entered Cetus 26567 | -6/Cetus | Accompanied by 13 allies 26568 | -6/Cetus | Identified exit to Archives 26588 | -6/Cetus | Build established: Commander-Mutant 26622 | -6/Cetus | Spotted Cetus Guard 26623 | -6/Cetus | Spotted Cetus Guard 26623 | -6/Cetus | Spotted Cetus Guard 26629 | -6/Cetus | Allies destroyed Cetus Guard 26675 | -6/Cetus | Lost 9 allies 26820 | -6/Cetus | Spotted Cetus Guard 26820 | -6/Cetus | Spotted Cetus Guard 26842 | -6/Cetus | Destroyed Cetus Guard 26888 | -6/Cetus | Spotted Cetus Guard 26889 | -6/Cetus | Destroyed Cetus Guard 26897 | -6/Cetus | Destroyed Cetus Guard 26910 | -6/Cetus | Build established: Scavenger-Mutant 26963 | -6/Cetus | Destroyed Cetus Guard 26977 | -6/Cetus | Discovered exit to Factory (range 15) 26985 | -6/Cetus | Met Revision 17 27314 | -6/Cetus | Entered Archives 27314 | -6/Archives | Accompanied by 1 ally 27508 | -6/Archives | Discovered exit to Factory (range 15) 27619 | -6/Archives | Discovered new exit (range 16) 27651 | -6/Archives | Discovered new exit (range 16) 27732 | -6/Archives | Identified exit to Hub_04(d) 27843 | -6/Archives | Entered Hub_04(d) 28210 | -6/Hub_04(d) | Build established: Scavenger-Skirmisher 28470 | -6/Hub_04(d) | Core integrity fell below 20% 28495 | -6/Hub_04(d) | Lost 3 parts (2n1w) 28524 | -6/Hub_04(d) | Network Hub disabled 28540 | -6/Hub_04(d) | Spotted Lightning 28542 | -6/Hub_04(d) | Spotted Lightning 28545 | -6/Hub_04(d) | Spotted Lightning 28549 | -6/Hub_04(d) | Destroyed by Lightning with EMDS Last Messages --------------- 28524_ ALERT: Suspicious activity at Terminal H015. Dispatching Investigation squad. 28541_ EMDS Slug penetrates Wall. 28541_ Wheel+ destroyed. 28542_ Penetrated by EMDS Slug. 28544_ EMDS Slug penetrates Wall. 28545_ Penetrated by EMDS Slug. 28545_ EMDS Slug penetrates Wall. 28546_ Penetrated by EMDS Slug. 28547_ Centrium Heavy Treads destroyed. 28547_ Penetrated by EMDS Slug. 28547_ Centrium Heavy Treads destroyed. 28547_ Lgt. Angular Momentum Engine destroyed. 28547_ EMDS Slug penetrates Wall. 28548_ Dropped Huge Storage Unit. 28549_ Dropped KE Penetrator. 28549_ Dropped Great Maul. 28549_ Penetrated by EMDS Slug. [Achievement: First Step to Greatness] [Achievement: This Is Interesting...] Map ----- +----------------------------------------------------+ | ?????## #######+#####?## # # #### | | ?????## """ ### ##?## # # """ # | | ?????## + + ##?## + + + | | ?????## """ ### """" ##?## # # """ # < | | ?????## ### """" ##?## # # # | | ?????## """ ### """" ##?## # + """ #### | | ?????## ### """" ##### # # =%! #### | | ?????## """ ### ##### ########+#######?? | | ?????## ### = + #### ###[#######?? | | ?????######+###### # ####??## ##??????? | | ?????#### ########+#### ####??## ##??????? | | ???????## ##??## ##??????? | | ???????## T ##??## ##??????? | | ???????## ######%######??? | | ???????## #####+############# ######/######??? | | ???????### ### # # ### * ##??? | | ??? ?? # ### + # ### ##??? | | ??? """? # ### # # ### ##??? | | ??? """" # ### # # ### ! ! ##??? | | ??? """" + ### # # ### ##??? | | ??? """" # ### """" # # ### ##??? | | ?? ? # ### """" + # ### ##??? | | ??? # ### """" # # T# ##??? | | ########## ### """" " =g " ""# ##??? | | ########## #############!#h#### #######+#####??? | | [*!=@!gw/ k ?? | | [[[h==i ?? | | %!==hg k ku % % ?? | | ########"""T"""#####;##T##############/#####??? | | ####################!######## #?????? | | ##????############# = ####????????????????????? | | ##??????########?## < #???????????????????????? | | ##??????# # #???????????????????????? | | ##??????# #=! #?###???????????????????? | | # # ]] #%! #?""#???????????????????? | | # """" # ]] [*== #"T"#???????????????????? | | # """" # ] =%#!%=#" "#####???????????????? | | ^# """" # =# =% ????????? | | ^# """" # " " " " # ????????? | | + # # ????????? | | # """" #####"### # ###############?????????? | | # """" #???# #??## #???????????????????????? | | # """" #???# #???# #???????????????????????? | | # """" #???# #???# #???????????????????????? | | # #???# #???# #???????????????????????? | | ####?########?##??# #???????????????????????? | | #### #???# ??# ????????????????????????? | | ""## #???# ??# ????????????????????????? | | ""## #???# ??+ ????????????????????????? | | T"## ##### ??# ????????????????????????? | +----------------------------------------------------+ Best States ------------- Heat Dissipation 37 Energy Generation 21 Energy Capacity 325 Matter Stores 300 Matter Capacity 300 Sight Range 16 Robot Scan Range 20 Terrain Scan Range 16 Terrain Scan Density 10 ECM Strength 2 Armor Coverage 1350 Utility Shielding 66 Evasion (%) 65 Recoil Reduction 6 Offensive Hacking 16 Defensive Hacking 12 Trap Extractor Capacity 6 Item Schematics ----------------- ECM Suite | -10/Materials | Hacked Hcp. Storage Unit | -10/Materials | Hacked Imp. Hover Unit | -9/Materials | Extracted Imp. Utility Shielding | -8/Materials | Hacked Imp. System Shield | -8/Recycling | Hacked Scythe | -8/Recycling | Hacked CPS Tube | -6/Factory | Scanalyzed Exp. Sensor Array | -6/Factory | Scanalyzed Nova Cannon | -6/Factory | Scanalyzed Exp. Hacking Suite | -6/Factory | Scanalyzed Lrn. Missile Launcher | -6/Factory | Scanalyzed Cmb. Airjet | -6/Factory | Hacked Robot Schematics ------------------ M-13 Machinist | -10/Materials | Hacked M-28 Smith | -8/Materials | Hacked Fabricated ------------ Nothing Repaired ---------- Lgt. Armor Plating | 10% | -9/Materials Lgt. Treads | 39% | -9/Materials Med. Armor Plating | 59% | -8/Materials Nova Cannon | 6% | -6/Factory Imp. Datajack | 30% | -6/Factory Studied --------- Wheel | -9/Materials | Hacked Autogun | -9/Materials | Hacked Hvy. Assault Cannon | -8/Materials | Hacked Gravmag Array | -6/Factory | Hacked Mic. Nuclear Core | -6/Factory | Hacked Missile Launcher | -6/Factory | Hacked Proton Missile Launcher | -6/Factory | Hacked Lrn. Missile Launcher | -6/Factory | Hacked Lgt. Fission Core | -6/Factory | Hacked Power Sword | -6/Factory | Hacked Alien Tech Used ----------------- None Achievements -------------- Botjacking Civilization 2243 First Step to Greatness Hulk Smash Insider Info Link The Feds Packrat Tank This Is Interesting... You May Approach The Wall \\IAMDERELICT Challenges ------------ None Game ------ Seed IonBlanketBay Manual? 0 Play Time 09:14:42 Cumulative 43.2 hours Start 2025.11.22 @ 23:00:08 End 2025.11.24 @ 01:21:56 Sessions 9 Manual Loads 0 Difficulty Rogue Special Mode None Game No. 3 Rogue 3 Adventurer 0 Explorer 0 Win Type - Total 2 Types 0/0/0/1/0/1/0/0/0/0 Lore% 27 Gallery% 31 Achievement% 42 Wizard Run 0 Options --------- Layout 0 ASCII 0 Keyboard 1 Movement Arrows Keybinds 0 Fullscreen 1 Font 12/Cog Map View 83x54 Zoom Use 0% Tactical HUD 1 Map Filters NONE Filters NONE Steam 0 RUN: 3b1af5a2-3201-4674-aa06-2148debcc013